Cogmind - Beta 12 @@@ ROGUE MODE // 2023.04.30 @ 12:33:34 Player: DreamweaverKara Result: Self-destructed Performance ------------- Evolutions (3) 1500 Regions Visited (5) 1000 Robots Destroyed (23) 115 Value Destroyed (770) 770 Prototype IDs (5) 100 Alien Tech Used (0) 0 Bonus (47) 47 TOTAL SCORE: 3532 Bonus ------- Follower Combat Kills 47 Cogmind --------- Core Integrity 672/700 Matter 225/300 Energy 21/100 System Corruption 0% Temperature Cool (0) Movement Rolling (90) Location -7/Factory Parts ------- > --- POWER (2) -------- (None) > --- PROPULSION (3) --- Wheel Armored Huge Wheel > --- UTILITY (5) ------ Advanced Weight Redist. System Terrain Scanner Improved Targeting Computer Advanced Targeting Computer Authchip [Storage] > --- WEAPON (3) ------- Beam Rifle > --- INVENTORY (5) ---- Improved Titanium Leg Coolant Injector Particle Charger Kinecellerator Light Assault Rifle Peak State ------------ > --- POWER ------------ (None) > --- PROPULSION ------- Wheel Armored Huge Wheel > --- UTILITY ---------- Advanced Weight Redist. System Terrain Scanner Improved Targeting Computer Advanced Targeting Computer Authchip [Storage] > --- WEAPON ----------- Beam Rifle Mining Laser > --- INVENTORY -------- Improved Titanium Leg Coolant Injector Kinecellerator Light Assault Rifle [Rating: 26] Favorites ----------- Power Light Ion Engine Engine Light Ion Engine Propulsion Improved Aluminum Leg Treads Light Treads Leg Improved Aluminum Leg Wheel Wheel Utility Small Storage Unit Device Terrain Scanner Storage Small Storage Unit Processor Improved Targeting Computer Hackware Authchip [Storage] Protection Light Armor Plating Weapon Light Assault Rifle Energy Gun EM Pulse Gun Ballistic Gun Light Assault Rifle Launcher EMP Blaster Special Weapon Mining Laser Build | -11 -10 -9 -9 -8 -7 ------- Run | Jun Mat Mat Min Mat Fac Slots Evolved 6 | . . 2 . 2 2 Power 1 | . . . . 1 . Propulsion 1 | . . 1 . . . Utility 3 | . . 1 . 1 1 Weapon 1 | . . . . . 1 Parts Attached 40 | 6 2 7 1 17 7 Power 4 | 1 1 . . 2 . Engine 4 | 1 1 . . 2 . Core . | . . . . . . Reactor . | . . . . . . Propulsion 12 | 2 . 4 . 4 2 Treads 2 | . . . . 2 . Leg 7 | 2 . 4 . . 1 Wheel 3 | . . . . 2 1 Hover . | . . . . . . Flight . | . . . . . . Utility 9 | 1 1 2 . 2 3 Device 2 | . . . . . 2 Storage 1 | 1 . . . . . Processor 4 | . 1 2 . 1 . Hackware 1 | . . . . . 1 Protection 1 | . . . . 1 . Artifact . | . . . . . . Weapon 15 | 2 . 1 1 9 2 Energy Gun 4 | 1 . . . 2 1 Energy Cannon . | . . . . . . Ballistic Gun 6 | 1 . 1 1 3 . Ballistic Cannon . | . . . . . . Launcher 1 | . . . . 1 . Special Weapon 4 | . . . . 3 1 Impact Weapon . | . . . . . . Slashing Weapon . | . . . . . . Piercing Weapon . | . . . . . . Special Melee Weapon . | . . . . . . Unidentified Prototypes 1 | . . . . 1 . Parts Lost 20 | . 1 1 . 17 1 Power 4 | . 1 . . 3 . Propulsion 6 | . . . . 6 . Utility 2 | . . . . 2 . Weapon 8 | . . 1 . 6 1 Highest Loss Streak 7 | . 1 1 . 7 1 To Critical Strikes . | . . . . . . Average Slot Usage (%) 87 | . 94 97 100 81 63 Engine 9 | . 13 11 11 8 . Treads 1 | . . . . 3 . Leg 22 | . 28 32 33 16 3 Wheel 1 | . . . . . 10 Storage 9 | . 14 11 11 7 . Processor 20 | . 9 20 22 26 15 Energy Gun 4 | . 14 1 . 1 7 Ballistic Gun 14 | . 14 20 22 12 . Special Weapon 1 | . . . . 2 7 Naked Turns . | . . . . . . Heaviest Build 22 | 11 11 12 12 22 5 Greatest Support 47 | 20 20 39 39 40 47 Greatest Overweight (x) 3 | . . . . 3 . Average Overweight (x) . | . . . . . . Largest Inventory Capacity 8 | 8 8 8 8 8 5 Average Capacity 7 | 6 8 8 8 7 5 Most Carried 8 | 4 8 8 8 8 5 Average Carried 6 | 1 6 6 7 6 3 Final Capacity 8 | 8 8 8 8 5 5 Final Carried 8 | 4 8 7 8 5 5 Class Distribution -------------------- 100% | Mutant Dominant Class ---------------- Mutant | -10/Materials Mutant | -9/Materials Mutant | -9/Mines Mutant | -8/Materials Mutant | -7/Factory Resources | -11 -10 -9 -9 -8 -7 ----------- Run | Jun Mat Mat Min Mat Fac Matter Collected 673 | 191 88 102 18 274 . Remotely . | . . . . . . Salvage Created 904 | . 129 102 19 654 . Parts 51 | . 4 11 2 34 . Haulers Intercepted . | . . . . . . Recyclers Shooed 2 | . . . . 2 . Parts Field Recycled . | . . . . . . Retrieved Matter . | . . . . . . Parts Self-Destructed . | . . . . . . Prevented . | . . . . . . Kills | -11 -10 -9 -9 -8 -7 ------- Run | Jun Mat Mat Min Mat Fac Combat Hostiles Destroyed 22 | . 2 4 1 15 . Guns 21 | . 2 4 1 14 . AOE 1 | . . . . 1 . Classes Destroyed 5 | . 2 2 . 1 . Watcher 1 | . 1 . . . . Swarmer 7 | . . 3 1 3 . Grunt 10 | . 2 . . 8 . Duelist 1 | . . . . 1 . Sentry 4 | . . 1 . 3 . Best Kill Streak 6 | . 1 3 1 6 . Combat Bots Only 6 | . 1 3 1 6 . Max Kills in Single Turn 2 | . 1 1 1 2 . Gunslinging 1 | . . . . 1 . Exploded 1 | . . . . 1 . Melee . | . . . . . . Uniques/NPCs Destroyed . | . . . . . . Combat | -11 -10 -9 -9 -8 -7 -------- Run | Jun Mat Mat Min Mat Fac Damage Taken 2677 | . 231 202 19 2015 210 Core 548 | . 91 56 . 373 28 Absorbed by Shields . | . . . . . . Regen/Repaired (Parts) 1 | . 1 . . . . Core Remaining (%) 70 | 100 63 . 86 32 . Volleys Fired 87 | . 12 10 2 62 1 Largest 2 | . 2 2 2 2 1 Hottest 200 | . 60 60 43 200 56 Shots Fired 170 | . 24 20 4 121 1 Gun 160 | . 24 20 4 111 1 Cannon . | . . . . . . Launcher 1 | . . . . 1 . Special 9 | . . . . 9 . Kinetic 120 | . 12 19 4 85 . Thermal 36 | . . . . 35 1 Explosive . | . . . . . . Electromagnetic 14 | . 12 1 . 1 . Robot Hit Streak 17 | . 10 8 1 17 2 Robot Miss Streak 4 | . 1 4 3 4 . Penetration Max . | . . . . . . Secondary Targets 2 | . . . . 2 . Max Gunslinging Chain 1 | . . . . 1 . Shots Hit Robots 119 | . 19 10 1 88 1 Core Hits 53 | . 7 6 1 39 . Critical Kills . | . . . . . . Critical Parts Destroyed . | . . . . . . Critical Strikes 1 | . . . . 1 . Burn 1 | . . . . 1 . Melee Attacks . | . . . . . . Impact . | . . . . . . Slashing . | . . . . . . Piercing . | . . . . . . Sneak Attacks . | . . . . . . Combat Hostiles . | . . . . . . Follow-up Attacks . | . . . . . . Damage Inflicted 1567 | . 237 106 12 1198 14 Guns 1527 | . 227 106 12 1168 14 Cannons . | . . . . . . Explosions 19 | . . . . 19 . Melee . | . . . . . . Ramming 21 | . 10 . . 11 . Kinetic 1051 | . 72 106 12 861 . Thermal 321 | . . . . 307 14 Explosive . | . . . . . . Electromagnetic 174 | . 155 . . 19 . Impact . | . . . . . . Slashing . | . . . . . . Piercing . | . . . . . . Highest Corruption 2 | . 2 . . . . Average Corruption 2 | . 2 . . . . Corruption Purged . | . . . . . . Corruption Blocked . | . . . . . . Overload Shots . | . . . . . . Overflow Damage . | . . . . . . Projectiles . | . . . . . . Explosions . | . . . . . . Melee . | . . . . . . Knockbacks . | . . . . . . Impact . | . . . . . . Kinetic . | . . . . . . Secondary . | . . . . . . Self-Inflicted Damage 8 | . . . . 8 . Shots 1 | . . . . 1 . Rammed 4 | . . . . 4 . Targets Rammed 8 | . 3 . . 5 . Kicked 4 | . 3 . . 1 . Crushed . | . . . . . . Highest Temperature 250 | . 83 14 . 250 . Average Temperature 66 | . 42 8 . 75 . Received Heat Transfer 924 | . 150 18 . 756 . Effects 1 | . . . . 1 . Interference 1 | . . . . 1 . Siege Activations . | . . . . . . Robots Corrupted . | . . . . . . Combat Hostiles . | . . . . . . Parts Fried 1 | . 1 . . . . Impact Corruptions . | . . . . . . Robots Melted . | . . . . . . Combat Hostiles . | . . . . . . Parts Melted . | . . . . . . Heat Transferred 888 | . . . . 851 37 Parts Sabotaged . | . . . . . . Parts Stolen . | . . . . . . Parts Stripped . | . . . . . . Power Chain Reactions . | . . . . . . Missiles Intercepted . | . . . . . . Alert | -11 -10 -9 -9 -8 -7 ------- Run | Jun Mat Mat Min Mat Fac Peak Influence 381 | . 111 198 150 381 86 Initial 86 | . . 46 76 58 86 Average 129 | . 58 142 97 194 85 Maximum Alert Level 1 | . . . . 1 . Low Security (%) 77 | 100 100 100 100 42 100 Level 1 22 | . . . . 57 . Level 2 . | . . . . . . Level 3 . | . . . . . . Level 4 . | . . . . . . Level 5 . | . . . . . . High Security . | . . . . . . Max Security . | . . . . . . Squads Dispatched 4 | . 1 . . 2 1 Investigation 2 | . . . . 1 1 Extermination . | . . . . . . Reinforcement 2 | . 1 . . 1 . Assault . | . . . . . . Garrison . | . . . . . . Intercept . | . . . . . . Searches Triggered . | . . . . . . Construction Impeded 1 | . . . . 1 . Haulers Reinforced . | . . . . . . Active Scanning Responses . | . . . . . . Cargo Convoy Interrupts . | . . . . . . Stealth | -11 -10 -9 -9 -8 -7 --------- Run | Jun Mat Mat Min Mat Fac Distress Signals 6 | . . 1 . 5 . Communications Jammed . | . . . . . . Distress Signals . | . . . . . . Times Spotted 42 | . 6 9 3 20 4 Peak Tracking Total 9 | . 2 4 3 9 4 Tactical Retreats 4 | . . 2 . 2 . Traps | -11 -10 -9 -9 -8 -7 ------- Run | Jun Mat Mat Min Mat Fac Traps Triggered 2 | . 1 . . 1 . Indirectly . | . . . . . . Trap Hack Attempts . | . . . . . . Triggered . | . . . . . . Disarmed . | . . . . . . Reprogrammed . | . . . . . . Reused . | . . . . . . Traps Extracted . | . . . . . . Installed . | . . . . . . Triggered . | . . . . . . Machines | -11 -10 -9 -9 -8 -7 ---------- Run | Jun Mat Mat Min Mat Fac Machines Disabled . | . . . . . . Max in Single Turn . | . . . . . . Machines Repaired . | . . . . . . Machines Sabotaged . | . . . . . . Overloaded Fab Kills . | . . . . . . Hacking | -11 -10 -9 -9 -8 -7 --------- Run | Jun Mat Mat Min Mat Fac Machines Accessed 12 | . 4 1 . 5 2 Terminals 9 | . 3 1 . 5 . Fabricators 1 | . . . . . 1 Repair Stations 1 | . 1 . . . . Recycling Units 1 | . . . . . 1 Scanalyzers . | . . . . . . Garrison Access . | . . . . . . Total Hacks 31 | . 10 2 . 16 3 Successful 15 | . 5 2 . 7 1 Failed 16 | . 5 . . 9 2 Catastrophic 3 | . 1 . . 1 1 Database Lockouts . | . . . . . . Manual . | . . . . . . Terminals 25 | . 7 2 . 16 . Fabricators 1 | . . . . . 1 Repair Stations 3 | . 3 . . . . Recycling Units 2 | . . . . . 2 Scanalyzers . | . . . . . . Garrison Access . | . . . . . . Terminal Hacks 12 | . 3 2 . 7 . Record 5 | . . 2 . 3 . Prototype ID Bank 2 | . . . . 2 . Emergency Access Points 1 | . 1 . . . . Zone Layout 4 | . 2 . . 2 . Fabricator Hacks . | . . . . . . Repair Station Hacks 2 | . 2 . . . . Scan Component 1 | . 1 . . . . Repair 1 | . 1 . . . . Recycling Unit Hacks 1 | . . . . . 1 Retrieve Components 1 | . . . . . 1 Scanalyzer . | . . . . . . Garrison Access Hacks . | . . . . . . Unauthorized Hacks . | . . . . . . Terminals . | . . . . . . Fabricators . | . . . . . . Repair Stations . | . . . . . . Recycling Units . | . . . . . . Scanalyzers . | . . . . . . Garrison Access . | . . . . . . Data Cores Recovered . | . . . . . . Used . | . . . . . . Hacking Detections 11 | . 4 1 . 4 2 Full Trace Events 1 | . . . . . 1 Feedback Events . | . . . . . . Feedback Blocked . | . . . . . . Robot Schematics Acquired . | . . . . . . Robots Built . | . . . . . . Authchips . | . . . . . . Time . | . . . . . . Total Robot Build Rating . | . . . . . . Part Schematics Acquired . | . . . . . . Parts Built . | . . . . . . Authchips . | . . . . . . Time . | . . . . . . Total Part Build Rating . | . . . . . . Parts Repaired 1 | . 1 . . . . Time 44 | . 44 . . . . Parts Recycled . | . . . . . . Recycled Matter . | . . . . . . Retrieved Matter . | . . . . . . Retrieved Components 2 | . . . . . 2 Parts Scanalyzed . | . . . . . . Part Schematics Acquired . | . . . . . . Parts Damaged . | . . . . . . Bothacking | -11 -10 -9 -9 -8 -7 ------------ Run | Jun Mat Mat Min Mat Fac Used RIF Installer . | . . . . . . Robots Hacked . | . . . . . . Non-combat . | . . . . . . Combat . | . . . . . . Robot Hacks Applied . | . . . . . . Relay Couplers Released . | . . . . . . Fabnet Peak Effective % . | . . . . . . Robots Rewired . | . . . . . . Allies Hacked . | . . . . . . Hacks Repelled . | . . . . . . Allies | -11 -10 -9 -9 -8 -7 -------- Run | Jun Mat Mat Min Mat Fac Total Allies 1 | . . . 1 . . Largest Group 1 | . . . 1 1 . Highest-Rated Group 31 | . . . 31 31 . Highest-Rated Ally 31 | . . . 31 31 . Total Orders . | . . . . . . Ally Attacks 3 | . . . 2 1 . Total Damage 62 | . . . 41 21 . Kills 3 | . . . 2 1 . Allies Corrupted . | . . . . . . Allies Melted . | . . . . . . Intel | -11 -10 -9 -9 -8 -7 ------- Run | Jun Mat Mat Min Mat Fac Robot Analysis Total . | . . . . . . Derelict Logs Recovered . | . . . . . . Drone Launches . | . . . . . . Drone Recoveries . | . . . . . . Exploration | -11 -10 -9 -9 -8 -7 ------------- Run | Jun Mat Mat Min Mat Fac Turns Passed 1656 | 93 353 288 140 665 117 Spaces Moved 993 | 68 220 196 100 322 87 Core 15 | 5 . . . 10 . Treads 62 | . . . . 62 . Legs 839 | 63 220 196 100 223 37 Wheels 77 | . . . . 27 50 Hover . | . . . . . . Flight . | . . . . . . Fastest Speed 50 | 50 120 120 120 50 80 Average Speed 119 | 114 120 120 120 123 106 Slowest Speed 200 | 120 120 120 120 200 130 Overloaded Moves . | . . . . . . Propulsion Burnouts . | . . . . . . Robots Hopped . | . . . . . . Cave-ins Triggered . | . . . . . . Exploration Rate (%) 20 | 5 36 21 26 34 3 Regions Visited 5 Branch Regions 1 Pre-discovered Areas . | . . . . . . Known Exits Taken . | . . . . . . Unknown Exits Taken 5 | 1 1 1 1 1 . Scrap Searched 1 | . . . 1 . . Spaces Dug 8 | . . . . 8 . Terrain Destroyed 8 | . . . . 8 . Melee . | . . . . . . Projectile 8 | . . . . 8 . AOE . | . . . . . . Terrain Rammed . | . . . . . . Walls Destroyed . | . . . . . . Machines Disabled . | . . . . . . Actions | -11 -10 -9 -9 -8 -7 --------- Run | Jun Mat Mat Min Mat Fac Total 1290 | 83 287 234 117 459 110 Wait 114 | . 44 8 12 43 7 Move 988 | 67 219 195 99 321 87 Hop . | . . . . . . Pick Up 43 | 10 7 8 2 9 7 Fast Attach 3 | . . . . 3 . Attach 32 | 6 2 7 1 9 7 Detach 1 | . . 1 . . . Swap 5 | . . . . 5 . Drop 9 | . . 5 1 2 1 Fire 87 | . 12 10 2 62 1 Melee . | . . . . . . Ram 3 | . . . . 3 . Kick 4 | . 3 . . 1 . Crush 1 | . . . . 1 . Escape Stasis . | . . . . . . Rewire . | . . . . . . Trap . | . . . . . . Miscellaneous . | . . . . . . Route ------- -11/Junkyard -10/Materials -9/Materials -9/Mines (discovered 2 exits: *Mat x2) -8/Materials -7/Factory History --------- Turn | Location | Event 53 | -11/Junkyard | Discovered new exit (range 16) 94 | -11/Junkyard | Entered Materials 305 | -10/Materials | Build established: Mutant 334 | -10/Materials | Repaired Corrupted Visual Processing Unit 383 | -10/Materials | Discovered new exit (range 3) 447 | -10/Materials | Entered another Materials area 447 | -9/Materials | Evolved 2 slots: Propulsion x1, Utility x1 714 | -9/Materials | Discovered new exit (range 16) 735 | -9/Materials | Entered Mines 738 | -9/Mines | Received a Mining Laser from a helpful Derelict 760 | -9/Mines | Discovered new exit (range 11) 856 | -9/Mines | Discovered new exit (range 10) 875 | -9/Mines | Entered Materials 875 | -8/Materials | Accompanied by 1 ally 875 | -8/Materials | Evolved 2 slots: Power x1, Utility x1 1336 | -8/Materials | Lost 7 parts (2p3n2w) 1371 | -8/Materials | Core integrity fell below 50% 1528 | -8/Materials | Discovered new exit (range 15) 1540 | -8/Materials | Entered Factory 1540 | -7/Factory | Evolved 2 slots: Utility x1, Weapon x1 1571 | -7/Factory | Lost 6 parts (2n2u2w) 1657 | -7/Factory | Self-destructed Last Messages --------------- 01549_ Acquired Imp. Titanium Leg. 01553_ Acquired Kinecellerator. 01561_ Acquired Coolant Injector. 01601_ Acquired Arm. Huge Wheel. 01602_ Dropped Imp. Titanium Leg. 01605_ Acquired Adv. Weight Redist. System. 01608_ Acquired Imp. Titanium Leg. 01629_ Connecting with Fabricator... 01629_ Current location identified: Factory 01629_ Connecting with Fabricator... 01639_ ALERT: All DSF locations entering lockdown mode. 01650_ Connecting with Recycling Unit... >>Retrieve(Components) Retrieving 2 components... Imp. Medium Treads Flexi-carbon Leg 01650_ ALERT: Suspicious activity at Recycling Unit F004. Dispatching Investigation squad. 01652_ Acquired Particle Charger. 01653_ Mining Laser destroyed. Map ----- +----------------------------------------------------+ | ????????# """"" # # #????????????????? | | ????????# """ # # #????????????????? | | ?????????? # # #????????????????? | | ???????#####+##### ##########????????????????? | | ???????# ! # # """"" #????????????????? | | ???????# ! + + """"" #????????????????? | | ???????# ! "" # # "" F" #????????????????? | | ???????# """# # #????????????????? | | ???????# """ S"# # #????????????????? | | ???????# """ """# # """ #????????????????? | | ???????# """ """# # """ #????????????????? | | ???????# # # """ #????????????????? | | ???????########### # #????????????????? | | ?????????????????# ####+#####????????????????? | | ?????????######??# #??# #????????????????????? | | ????????? ??# #??# #???????? ???????????? | | ?????????? !!!?# #??# #?????? ????????? | | ?????????? !!! # #### ##### ??????? | | ???????????" !![ # ??????? | | ???????????" #???????????? | | ???????????? # #???????????? | | ???????# # #???????????? | | ???????# ] #???????????? | | ?????????????#######/#############+###???????????? | | ?????????????# ssss #????????????????????? | | ?????????????# """ @ #????????????????????? | | ?????????????# """ == #????????????????????? | | ?????????????# """ #????????????????????? | | ?????????????# """Y""" #????????????????????? | | ?????????????# """"""" #????????????????????? | | ?????????????################????????????????????? | | | | | | | | | | | | | | | | | | | | | | | | | | | | | | | | | | | | | | | +----------------------------------------------------+ Best States ------------- Heat Dissipation 34 Energy Generation 19 Energy Capacity 305 Matter Stores 300 Matter Capacity 300 Sight Range 18 Terrain Scan Density 85 Additional Mass Support 9 Armor Coverage 150 Evasion (%) 55 Targeting Accuracy 14 Recoil Reduction 2 Authchip Count 1 Item Schematics ----------------- None Robot Schematics ------------------ None Fabricated ------------ Nothing Alien Tech Used ----------------- None Achievements -------------- None Challenges ------------ None Game ------ Seed NavigationThrusterLeg Manual? 0 Play Time 00:27:33 Cumulative 15.3 hours Start 2023.04.30 @ 12:04:02 End 2023.04.30 @ 12:33:34 Sessions 1 Manual Loads 0 Difficulty Rogue Special Mode None Game No. 56 Rogue 56 Adventurer 0 Explorer 0 Win Type - Total 0 Types 0/0/0/0/0/0/0/0/0 Lore% 12 Gallery% 23 Achievement% 18 Wizard Run 0 Options --------- ASCII 1 Keyboard 0 Movement Mouse Keybinds 0 Fullscreen 2 Font 16/Terminus Map View 76x50 Tactical HUD 1 Map Filters NONE Filters NONE Steam 1 RUN: 1603cae5-7283-4ae8-8c08-2a03fce856e7